fUSD/lending_fUSD_20250525
["ID","MTS","AMOUNT","RATE_DAILY","PERIOD"]
[362300240,1748173846099,-529.53,0.00019999,2]
[362300241,1748173846108,-529.53,0.00019999,2]
[362300242,1748173846118,-529.53,0.00019999,2]
[362300243,1748173846127,-529.53,0.00019999,2]
[362300245,1748173846137,-529.53,0.00019999,2]
[362300247,1748173846146,-529.53,0.00019999,2]
[362300249,1748173846155,-529.53,0.00019999,2]
[362300250,1748173846164,-529.53,0.00019999,2]
[362300251,1748173846173,-529.53,0.00019999,2]
[362300252,1748173846182,-529.53,0.00019999,2]
[362300253,1748173846193,-529.72987401,0.00019999,2]
[362300254,1748173846204,-420.0,0.00019999,2]
[362300255,1748173846214,-420.0,0.00019999,2]
[362300256,1748173846223,-420.0,0.00019999,2]
[362300257,1748173846232,-468.37673543,0.00019999,2]
[362300258,1748173846243,-816.21,0.00019999,2]
[362300259,1748173846252,-816.21,0.00019999,2]
[362300260,1748173846261,-420.0,0.00019999,2]
[362300261,1748173846272,-816.21,0.00019999,2]
[362300262,1748173846282,-420.0,0.00019999,2]
[362300263,1748173846291,-816.21,0.00019999,2]
[362300264,1748173846301,-568.29902534,0.00019999,2]
[362300265,1748173846311,-816.21,0.00019999,2]
[362300266,1748173846320,-816.21,0.00019999,2]
[362300267,1748173846329,-816.21,0.00019999,2]
[362300268,1748173846338,-816.21,0.00019999,2]
[362300269,1748173846347,-420.0,0.00019999,2]
[362300270,1748173846357,-816.21,0.00019999,2]
[362300271,1748173846366,-420.0,0.00019999,2]
[362300272,1748173846375,-816.21,0.00019999,2]
[362300273,1748173846384,-420.0,0.00019999,2]
[362300274,1748173846394,-816.21,0.00019999,2]
[362300275,1748173846404,-420.0,0.00019999,2]
[362300276,1748173846415,-816.21,0.00019999,2]
[362300277,1748173846426,-420.0,0.00019999,2]
[362300278,1748173846435,-816.21,0.00019999,2]
[362300279,1748173846446,-420.0,0.00019999,2]
[362300280,1748173846455,-816.21,0.00019999,2]
[362300281,1748173846465,-420.0,0.00019999,2]
[362300282,1748173846475,-816.21,0.00019999,2]
[362300283,1748173846485,-420.0,0.00019999,2]
[362300284,1748173846496,-816.21,0.00019999,2]
[362300285,1748173846505,-420.0,0.00019999,2]
[362300286,1748173846515,-816.21,0.00019999,2]
[362300287,1748173846525,-420.0,0.00019999,2]
[362300288,1748173846534,-816.21,0.00019999,2]
[362300289,1748173846544,-420.0,0.00019999,2]
[362300290,1748173846554,-816.21,0.00019999,2]
[362300291,1748173846566,-420.0,0.00019999,2]
[362300292,1748173846576,-816.21,0.00019999,2]
[362300293,1748173846586,-420.0,0.00019999,2]
[362300294,1748173846595,-816.21,0.00019999,2]
[362300295,1748173846604,-816.35224462,0.00019999,2]
[362300296,1748173846614,-420.0,0.00019999,2]
[362300297,1748173846623,-279.44282743,0.00019999,2]
[362300298,1748173846635,-420.0,0.00019999,2]
[362300299,1748173846646,-420.0,0.00019999,2]
[362300300,1748173846658,-420.0,0.00019999,2]
[362300301,1748173846669,-420.0,0.00019999,2]
[362300302,1748173846680,-420.0,0.00019999,2]
[362300303,1748173846690,-420.0,0.00019999,2]
[362300304,1748173846699,-420.0,0.00019999,2]
[362300305,1748173846709,-420.0,0.00019999,2]
[362300306,1748173846719,-420.0,0.00019999,2]
[362300307,1748173846730,-420.0,0.00019999,2]
[362300308,1748173846740,-331.76,0.00019999,2]
[362300309,1748173846749,-752.57,0.00019999,2]
[362300310,1748173846759,-752.57,0.00019999,2]
[362300311,1748173846768,-752.57,0.00019999,2]
[362300312,1748173846778,-752.57,0.00019999,2]
[362300313,1748173846788,-752.57,0.00019999,2]
[362300314,1748173846797,-752.57,0.00019999,2]
[362300315,1748173846806,-752.57,0.00019999,2]
[362300316,1748173846815,-752.57,0.00019999,2]
[362300317,1748173846824,-752.57,0.00019999,2]
[362300318,1748173846835,-752.57,0.00019999,2]
[362300319,1748173846845,-752.57,0.00019999,2]
[362300320,1748173846855,-752.57,0.00019999,2]
[362300321,1748173846864,-752.57,0.00019999,2]
[362300323,1748173846874,-752.57,0.00019999,2]
[362300325,1748173846883,-752.57,0.00019999,2]
[362300327,1748173846892,-752.57,0.00019999,2]
[362300329,1748173846901,-752.57,0.00019999,2]
[362300331,1748173846910,-752.57,0.00019999,2]
[362300333,1748173846920,-752.57,0.00019999,2]
[362300334,1748173846930,-752.57,0.00019999,2]
[362300335,1748173846939,-752.57,0.00019999,2]
[362300336,1748173846950,-752.74684344,0.00019999,2]
[362300337,1748173846959,-420.0,0.00019999,2]
[362300338,1748173846968,-389.60452836,0.00019999,2]
[362300339,1748173846978,-420.0,0.00019999,2]
[362300340,1748173846988,-420.0,0.00019999,2]
[362300341,1748173846997,-420.0,0.00019999,2]
[362300342,1748173847008,-420.0,0.00019999,2]
[362300343,1748173847018,-420.0,0.00019999,2]
[362300344,1748173847027,-420.0,0.00019999,2]
[362300345,1748173847037,-420.0,0.00019999,2]
[362300346,1748173847047,-261.41,0.00019999,2]
[362300347,1748173847056,-420.0,0.00019999,2]
[362300348,1748173847066,-420.0,0.00019999,2]
[362300349,1748173847075,-420.0,0.00019999,2]
[362300350,1748173847085,-420.0,0.00019999,2]
[362300351,1748173847094,-420.0,0.00019999,2]
[362300352,1748173847103,-420.0,0.00019999,2]
[362300353,1748173847113,-420.0,0.00019999,2]
[362300354,1748173847122,-420.0,0.00019999,2]
[362300355,1748173847132,-420.0,0.00019999,2]
[362300356,1748173847141,-420.0,0.00019999,2]
[362300357,1748173847150,-420.0,0.00019999,2]
[362300358,1748173847159,-420.0,0.00019999,2]
[362300359,1748173847168,-420.0,0.00019999,2]
[362300360,1748173847178,-420.0,0.00019999,2]
[362300361,1748173847187,-420.0,0.00019999,2]
[362300362,1748173847200,-420.0,0.00019999,2]
[362300363,1748173847209,-420.0,0.00019999,2]
[362300364,1748173847219,-193.86,0.00019999,2]
[362300365,1748173847228,-420.0,0.00019999,2]
[362300366,1748173847238,-420.0,0.00019999,2]
[362300367,1748173847247,-420.0,0.00019999,2]
[362300368,1748173847257,-443.28,0.00019999,2]
[362300369,1748173847269,-420.0,0.00019999,2]
[362300370,1748173847278,-171.1,0.00019999,2]
[362300371,1748173847287,-524.71039898,0.00019999,2]
[362300372,1748173847297,-420.0,0.00019999,2]
[362300373,1748173847307,-420.0,0.00019999,2]
[362300374,1748173847316,-420.0,0.00019999,2]
[362300375,1748173847328,-420.0,0.00019999,2]
[362300376,1748173847339,-502.01,0.00019999,2]
[362300377,1748173847348,-494.99250602,0.00019999,2]
[362300378,1748173847358,-300.809088,0.00019999,2]
[362300379,1748173847368,-300.809088,0.00019999,2]
[362300380,1748173847378,-849.945,0.00019999,2]
[362300381,1748173847387,-666.0,0.0002,2]
[362300382,1748173847397,-62801.96592752,0.0002,2]
[362300383,1748173847659,-1027.36941063,0.0002,2]
[362300384,1748173847670,-316.71689956,0.0002,2]
[362300385,1748173847682,-455.136719,0.0002,2]
[362300386,1748173848071,-600.0,0.000191,6]
[362300387,1748173848081,-1200.0,0.000192,7]
[362300388,1748173848091,-1900.0,0.000193,7]
[362300389,1748173848102,-420.0,0.00019896,2]
[362300390,1748173848113,-420.0,0.00019998,2]
[362300391,1748173848123,-420.0,0.00019999,2]
[362300392,1748173848134,-420.0,0.00019999,2]
[362300393,1748173848144,-420.0,0.00019999,2]
[362300394,1748173848155,-759.67378983,0.0002,2]
[362300395,1748174079126,150.0,0.000175,5]
[362300396,1748174124277,395.9,0.00013699,2]
[362300398,1748174152826,-227.21995038,0.00016954,2]
[362300399,1748174159759,-386.99,0.00016954,2]
[362300400,1748174162998,-19.43004962,0.00016954,2]
[362300402,1748174596083,943.33356986,0.00016503,2]
[362300403,1748174598688,-197.8898891,0.00016503,2]
[362300404,1748174600790,-230.24385276,0.00016503,2]
[362300405,1748174606314,-151.18430139,0.00016503,2]
[362300406,1748174607813,-153.07500668,0.00016503,2]
[362300407,1748174650046,353.19,0.00016502,2]
[362300408,1748174708368,2473.8165075,7.945e-05,2]
[362300409,1748174708396,2827.0065075,7.945e-05,2]
[362300410,1748174708423,2827.0065075,7.945e-05,2]
[362300411,1748174708449,345.2156035,7.945e-05,2]
[362300413,1748174825103,-502.23218378,0.00018068,2]
[362300414,1748174825127,-206.0,0.00018448,2]
[362300415,1748174825150,-166.49,0.00018817,2]
[362300416,1748174825172,-56.78182786,0.00018819,2]
[362300417,1748174827085,-193.21817214,0.00018819,2]
[362300418,1748174827106,-364.61,0.00018822,2]
[362300419,1748174827129,-169.62,0.00018827,2]
[362300420,1748174827149,-200.0,0.00018929,2]
[362300421,1748174827171,-500.0,0.00019164,2]
[362300422,1748174827192,-244.42240474,0.00019218,2]
[362300423,1748174837111,-378.01913095,0.000191,6]
[362300424,1748174919980,250.0,0.00015,2]
[362300425,1748174921086,223.14565518,0.00017,2]
[362300426,1748174925031,-76.85434482,0.00017,2]
[362300434,1748175031449,-211.005783,0.00018687,2]
[362300435,1748175031459,-500.61047698,0.00018781,2]
[362300436,1748175031660,-274.1118893,0.00018781,2]
[362300532,1748175037527,-225.27763372,0.00018781,2]
[362300533,1748175037537,-350.0,0.00019,2]
[362300534,1748175037546,-140.62235628,0.00019052,2]
[362300651,1748175039638,-109.37764372,0.00019052,2]
[362300652,1748175039648,-21.98086905,0.000191,6]
[362300653,1748175039658,-454.82647328,0.00019164,2]
[362300654,1748175039667,-900.0,0.000192,7]
[362300655,1748175039680,-389.21759526,0.00019218,2]
[362300656,1748175039690,-380.0,0.00019233,2]
[362300657,1748175039699,-1300.0,0.000193,7]
[362300658,1748175039708,-412.19130792,0.000194,7]
[362300659,1748175039794,-250.84066,0.000194,7]
[362300677,1748175043420,-1136.96803208,0.000194,7]
[362300678,1748175043430,-1110.70196792,0.00019484,2]
[362300679,1748175043446,-89.29803208,0.00019484,2]
[362300680,1748175043456,-207.4,0.00019484,2]
[362300681,1748175043467,-151.0,0.00019486,2]
[362300682,1748175043477,-668.65185757,0.00019486,2]
[362300683,1748175043488,-300.0,0.00019496,2]
[362300684,1748175043498,-582.80528383,0.00019497,2]
[362300685,1748175043509,-500.0,0.00019497,2]
[362300686,1748175043519,-89.64492652,0.00019497,2]
[362300687,1748175043555,-2109.97507348,0.00019497,2]
[362300688,1748175043567,-299.99,0.00019497,7]
[362300689,1748175043578,-746.18,0.00019497,2]
[362300690,1748175043587,-150.99,0.00019497,2]
[362300692,1748175043597,-95762.904,0.00019498,2]
[362300693,1748175043608,-2300.0,0.000195,7]
[362300694,1748175043617,-420.0,0.00019572,2]
[362300696,1748175043626,-200.36111168,0.00019572,2]
[362300698,1748175043635,-370.51119785,0.00019572,2]
[362300700,1748175043644,-420.0,0.00019572,2]
[362300702,1748175043653,-420.0,0.00019572,2]
[362300704,1748175043663,-155.430178,0.00019599,2]
[362300706,1748175043674,-400.0,0.000196,7]
[362300708,1748175043684,-400.0,0.000197,7]
[362300711,1748175043693,-218.85,0.00019726,2]
[362300714,1748175043703,-151.06922865,0.0001978,2]
[362300716,1748175043713,-150.0,0.00019785,2]
[362300718,1748175043722,-400.0,0.000198,7]
[362300720,1748175043731,-200.0,0.0001984,2]
[362300722,1748175043740,-2471.21963307,0.00019895,2]
[362300724,1748175043749,-2471.219633,0.00019896,2]
[362300725,1748175043761,-2471.219633,0.00019896,2]
[362300727,1748175043771,-1453.90660582,0.00019897,2]
[362300755,1748175045827,-1017.31302718,0.00019897,2]
[362300756,1748175045836,-2500.0,0.00019897,2]
[362300757,1748175045847,-2471.219633,0.00019897,2]
[362300758,1748175045860,-2471.219633,0.00019898,2]
[362300759,1748175045869,-2471.219633,0.00019898,2]
[362300760,1748175045879,-2471.219633,0.00019899,2]
[362300761,1748175045889,-554.029,0.00019899,2]
[362300762,1748175045898,-532.71274592,0.00019899,2]
[362300763,1748175045908,-532.71274585,0.00019899,2]
[362300764,1748175045919,-532.71274585,0.00019899,2]
[362300765,1748175045929,-532.71274585,0.00019899,2]
[362300766,1748175045940,-532.71274585,0.00019899,2]
[362300767,1748175045949,-2471.219633,0.00019899,2]
[362300768,1748175045958,-532.71274585,0.000199,2]
[362300769,1748175045968,-532.71274585,0.000199,2]
[362300770,1748175045978,-532.71274585,0.000199,2]
[362300772,1748175045987,-532.71274585,0.000199,2]
[362300792,1748175046203,-169.61517148,0.000199,2]
[362300793,1748175046213,-532.71274585,0.000199,2]
[362300794,1748175046223,-400.0,0.000199,7]
[362300795,1748175046234,-2471.219633,0.000199,2]
[362300796,1748175046244,-849.945,0.00019921,2]
[362300797,1748175046253,-500.0,0.00019973,2]
[362300798,1748175046263,-500.0,0.0001999,2]
[362300799,1748175046273,-150.0,0.0001999,2]
[362300800,1748175046282,-150.0,0.0001999,2]
[362300801,1748175046292,-2161.98947039,0.00019993,2]
[362300802,1748175046302,-2161.98947039,0.00019993,2]
[362300803,1748175046311,-2161.98947039,0.00019993,2]
[362300804,1748175046322,-2161.98947039,0.00019993,2]
[362300805,1748175046331,-2161.98947039,0.00019993,2]
[362300806,1748175046342,-2161.98947039,0.00019993,2]
[362300807,1748175046351,-272.76802762,0.00019995,2]
[362300808,1748175046361,-500.0,0.00019995,2]
[362300809,1748175046371,-420.0,0.00019995,2]
[362300810,1748175046380,-10532.0833332,0.00019996,2]
[362300811,1748175046390,-13528.1273894,0.00019996,2]
[362300812,1748175046399,-5048.9825474,0.00019996,2]
[362300813,1748175046411,-36971.03139144,0.00019996,2]
[362300814,1748175179011,401.53,0.00013699,2]
[362300816,1748175351182,1789.0,0.00026,120]
[362300817,1748175395997,-199.29680172,0.00017003,2]
[362300818,1748175400148,-324.20405992,0.00017003,2]
[362300819,1748175404331,-113.99913836,0.00017003,2]
[362300822,1748175731909,-194.85052597,0.00017,2]
[362300823,1748175733378,-108.61910982,0.00017,2]
[362300825,1748175956150,1671.08224735,6.94e-05,2]
[362300826,1748175963606,159.17865665,8e-05,2]
[362300827,1748175963633,2469.94935182,8e-05,2]
[362300828,1748175967668,547.253101,7.945e-05,2]
[362300829,1748176012554,168.10546445,7.1e-07,2]
[362300830,1748176046109,-781.70740698,0.00018881,2]
[362300831,1748176046148,-218.29259302,0.00018881,2]
[362300832,1748176046172,-154.86,0.00018917,2]
[362300833,1748176046193,-182.3,0.00018917,2]
[362300834,1748176046215,-1142.7833225,0.00018918,2]
[362300836,1748176078654,1120.01727945,0.00015,10]
[362300837,1748176108290,193.006001,0.00023,30]
[362300843,1748176123724,490.33869651,0.00013368,2]
[362300857,1748176231735,-497.94334989,0.00018694,2]
[362300858,1748176231745,-250.0,0.00018806,2]
[362300859,1748176231756,-200.0,0.00018918,2]
[362300860,1748176231766,-850.89787792,0.00018919,2]
[362300861,1748176231779,-4914.44974581,0.00018919,2]
[362300862,1748176231799,-2141.21237627,0.00018919,2]
[362300863,1748176231809,-216.06792533,0.00019,2]
[362300864,1748176231818,-300.0,0.00019209,2]
[362300865,1748176231827,-341.14288809,0.0001921,2]
[362300866,1748176231839,-795.41185303,0.0001921,2]
[362300867,1748176231849,-293.58814697,0.00019266,2]
[362300868,1748176231860,-343.91185303,0.00019266,2]
[362300869,1748176231870,-44.55928669,0.0001949,2]
[362300870,1748176231881,-123.35071331,0.0001949,2]
[362300871,1748176231891,-163.443637,0.00019599,2]
[362300872,1748176231900,-479.28301381,0.000196,2]
[362300873,1748176231912,-680.62698619,0.000196,2]
[362300874,1748176231922,-170.24,0.000196,2]
[362300875,1748176231932,-206.0,0.00019642,2]
[362300876,1748176231942,-822.14461619,0.000197,2]
[362300877,1748176231951,-1159.91,0.000197,2]
[362300878,1748176231960,-1159.91,0.000197,2]
[362300879,1748176231969,-1159.91,0.000197,2]
[362300880,1748176231979,-170.24,0.000197,2]
[362300881,1748176231990,-150.0,0.00019779,2]
[362300882,1748176231999,-2316.04688185,0.0001978,2]
[362300883,1748176232009,-207.4,0.00019788,2]
[362300884,1748176232019,-500.0,0.00019799,2]
[362300885,1748176232028,-326.68728133,0.00019799,2]
[362300886,1748176232039,-172.84,0.000198,2]
[362300887,1748176232050,-1159.91,0.000198,2]
[362300888,1748176232060,-150.0,0.00019808,2]
[362300890,1748176232070,-151.0,0.00019883,2]
[362300891,1748176232079,-668.65185757,0.00019883,2]
[362300892,1748176232089,-1378.72986023,0.00019895,2]
[362300893,1748176232103,-35955.1194,0.00019895,2]
[362300894,1748176232112,-1378.72986014,0.00019896,2]
[362300895,1748176232122,-2099.66411521,0.00019896,2]
[362300896,1748176232132,-1378.72986014,0.00019896,2]
[362300897,1748176232145,-2099.66411521,0.00019897,2]
[362300898,1748176232158,-1196.93199572,0.00019897,2]
[362301424,1748176237652,-181.79786442,0.00019897,2]
[362301427,1748176237662,-190.93713558,0.00019897,2]
[362301429,1748176237673,-252.28586442,0.00019897,2]
[362301431,1748176237686,-1378.72986014,0.00019897,2]
[362301433,1748176237695,-2099.66411521,0.00019897,2]
[362301435,1748176237704,-1378.72986014,0.00019898,2]
[362301437,1748176237714,-2099.66411521,0.00019898,2]
[362301439,1748176237724,-1378.72986014,0.00019898,2]
[362301441,1748176237733,-2099.66411521,0.00019899,2]
[362301443,1748176237742,-1378.72986014,0.00019899,2]
[362301445,1748176237751,-57693.3868,0.00019899,2]
[362301447,1748176237761,-2099.66411521,0.00019899,2]
[362301449,1748176237770,-1378.72986014,0.00019899,2]
[362301451,1748176237779,-2099.66411521,0.000199,2]
[362301453,1748176237789,-1378.72986014,0.000199,2]
[362301455,1748176237799,-830.91,0.000199,2]
[362301457,1748176237808,-711.36493033,0.000199,7]
[362301459,1748176237818,-247.50405212,0.000199,2]
[362301461,1748176237828,-150.0,0.00019902,2]
[362301463,1748176237837,-150.0,0.00019915,2]
[362301465,1748176237847,-439.72029133,0.00019973,2]
[362301466,1748176237856,-192.52913684,0.0001999,2]
[362301468,1748176237866,-2192.60657178,0.0001999,2]
[362301470,1748176237875,-2192.60657178,0.0001999,2]
[362301471,1748176237884,-271.627178,0.0001999,2]
[362301472,1748176237894,-2192.60657178,0.0001999,2]
[362301473,1748176237904,-2192.60657178,0.0001999,2]
[362301474,1748176237913,-2192.60657178,0.0001999,2]
[362301475,1748176237924,-2192.60657178,0.0001999,2]
[362301476,1748176237934,-2192.60657178,0.0001999,2]
[362301477,1748176237944,-2192.60657178,0.0001999,2]
[362301479,1748176237953,-2192.60657178,0.0001999,2]
[362301481,1748176237962,-2192.60657178,0.0001999,2]
[362301483,1748176237971,-2192.60657178,0.0001999,2]
[362301485,1748176237981,-2192.60657178,0.0001999,2]
[362301487,1748176237991,-2192.60657178,0.0001999,2]
[362301489,1748176238000,-2192.60657178,0.0001999,2]
[362301490,1748176238010,-2192.60657178,0.0001999,2]
[362301492,1748176238019,-2192.60657178,0.0001999,2]
[362301494,1748176238028,-2192.60657178,0.0001999,2]
[362301496,1748176238041,-281.67667907,0.00019993,2]
[362301498,1748176238052,-386.012002,0.00019993,2]
[362301500,1748176238063,-151.0,0.00019994,2]
[362301502,1748176238072,-420.0,0.00019994,2]
[362301504,1748176238082,-151.0,0.00019994,2]
[362301506,1748176238092,-420.0,0.00019994,2]
[362301508,1748176238106,-420.0,0.00019994,2]
[362301510,1748176238116,-151.0,0.00019994,2]
[362301512,1748176238126,-545.28169242,0.00019994,2]
[362301514,1748176238136,-2658.47,0.00019994,2]
[362301516,1748176238147,-420.0,0.00019994,2]
[362301518,1748176238156,-151.0,0.00019994,2]
[362301520,1748176238166,-900.96,0.00019994,2]
[362301522,1748176238177,-486.0631255,0.00019994,2]
[362301524,1748176238189,-420.0,0.00019994,2]
[362301526,1748176238199,-151.0,0.00019994,2]
[362301528,1748176238210,-2000.89,0.00019994,2]
[362301530,1748176238219,-47.92329815,0.00019994,2]
[362301532,1748176238234,-372.07670185,0.00019994,2]
[362301534,1748176238243,-203.07329815,0.00019994,2]
[362301537,1748176238255,-216.92670185,0.00019994,2]
[362301539,1748176238265,-411.07333879,0.00019994,2]
[362301541,1748176238278,-8.92666121,0.00019994,2]
[362301543,1748176238288,-263.83446911,0.00019994,2]
[362301545,1748176238299,-156.16553089,0.00019994,2]
[362301547,1748176238310,-403.68542441,0.00019994,2]
[362301606,1748176238890,-16.31457559,0.00019994,2]
[362301608,1748176238901,-1013.76,0.00019994,2]
[362301610,1748176238911,-420.0,0.00019994,2]
[362301612,1748176238920,-420.0,0.00019994,2]
[362301614,1748176238930,-420.0,0.00019994,2]
[362301616,1748176238939,-457.54,0.00019994,2]
[362301618,1748176238949,-420.0,0.00019994,2]
[362301620,1748176238958,-1951.91,0.00019994,2]
[362301622,1748176238969,-420.0,0.00019994,2]
[362301624,1748176238979,-420.0,0.00019994,2]
[362301626,1748176238988,-160.539493,0.00019994,2]
[362301628,1748176238998,-151.0,0.00019994,2]
[362301630,1748176239008,-160.539493,0.00019994,2]
[362301632,1748176239019,-420.0,0.00019994,2]
[362301634,1748176239029,-875.691124,0.00019994,2]
[362301636,1748176239039,-151.0,0.00019994,2]
[362301638,1748176239048,-651.69,0.00019994,2]
[362301640,1748176239057,-875.691124,0.00019994,2]
[362301642,1748176239067,-420.0,0.00019994,2]
[362301644,1748176239077,-420.0,0.00019994,2]
[362301646,1748176239087,-420.0,0.00019994,2]
[362301648,1748176239097,-785.29,0.00019994,2]
[362301650,1748176239110,-420.0,0.00019994,2]
[362301653,1748176239119,-705.01,0.00019994,2]
[362301655,1748176239129,-420.0,0.00019994,2]
[362301656,1748176239140,-829.34,0.00019994,2]
[362301657,1748176239150,-420.0,0.00019994,2]
[362301659,1748176239160,-420.0,0.00019994,2]
[362301661,1748176239169,-420.0,0.00019994,2]
[362301662,1748176239179,-8443.33709607,0.00019994,2]
[362301663,1748176239192,-3277.2,0.00019994,2]
[362302079,1748176243775,-580.93,0.00019994,2]
[362302081,1748176243784,-420.0,0.00019994,2]
[362302083,1748176243794,-929.07,0.00019994,2]
[362302086,1748176243812,-257.73093299,0.00019994,2]
[362302090,1748176243837,-8747.82829427,0.00019994,2]
[362302092,1748176243849,-3732.54391498,0.00019994,2]
[362302094,1748176243860,-764.1832032,0.00019994,2]
[362302097,1748176243896,-858.42,0.00019994,2]
[362302098,1748176243954,-2020.79816633,0.00019994,2]
[362302143,1748176244347,-55598.76932018,0.00019994,2]
[362302146,1748176244358,-646.12991311,0.00019994,2]
[362302149,1748176244371,-498.73294893,0.00019994,2]
[362302152,1748176244387,-18136.82293871,0.00019994,2]
[362302154,1748176244397,-420.0,0.00019995,2]
[362302156,1748176244406,-151.0,0.00019995,2]
[362302158,1748176244416,-151.0,0.00019995,2]
[362302160,1748176244425,-151.0,0.00019995,2]
[362302162,1748176244434,-420.0,0.00019995,2]
[362302164,1748176244443,-151.0,0.00019995,2]
[362302166,1748176244452,-151.0,0.00019995,2]
[362302168,1748176244462,-151.0,0.00019995,2]
[362302170,1748176244471,-151.0,0.00019995,2]
[362302172,1748176244480,-151.0,0.00019995,2]
[362302174,1748176244490,-416.09315717,0.00019995,2]
[362302176,1748176244500,-151.0,0.00019995,2]
[362302178,1748176244510,-420.0,0.00019995,2]
[362302180,1748176244520,-151.0,0.00019995,2]
[362302182,1748176244529,-1594.237499,0.00019995,2]
[362302184,1748176244539,-429.98,0.00019995,2]
[362302186,1748176244548,-1594.237499,0.00019995,2]
[362302188,1748176244558,-420.0,0.00019995,2]
[362302190,1748176244569,-420.0,0.00019995,2]
[362302192,1748176244578,-420.0,0.00019995,2]
[362302194,1748176244588,-420.0,0.00019995,2]
[362302196,1748176244597,-420.0,0.00019995,2]
[362302198,1748176244606,-420.0,0.00019995,2]
[362302200,1748176244616,-420.0,0.00019995,2]
[362302202,1748176244626,-160.39987272,0.00019995,2]
[362302204,1748176244636,-420.0,0.00019995,2]
[362302206,1748176244645,-420.0,0.00019995,2]
[362302208,1748176244655,-420.0,0.00019995,2]
[362302210,1748176244664,-450.52447628,0.00019995,2]
[362302212,1748176244673,-218.16572337,0.00019995,2]
[362302214,1748176244682,-420.0,0.00019995,2]
[362302216,1748176244692,-453.25693464,0.00019995,2]
[362302218,1748176244701,-420.0,0.00019995,2]
[362302220,1748176244710,-420.0,0.00019995,2]
[362302222,1748176244720,-420.0,0.00019995,2]
[362302224,1748176244729,-420.0,0.00019995,2]
[362302226,1748176244738,-420.0,0.00019995,2]
[362302228,1748176244747,-529.57,0.00019995,2]
[362302230,1748176244756,-518.83467523,0.00019995,2]
[362302232,1748176244767,-794.462552,0.00019995,2]
[362302234,1748176244776,-151.0,0.00019995,2]
[362302236,1748176244786,-794.462552,0.00019995,2]
[362302238,1748176244795,-420.0,0.00019995,2]
[362302240,1748176244804,-521.8294532,0.00019995,2]
[362302242,1748176244814,-420.0,0.00019995,2]
[362302244,1748176244823,-420.0,0.00019995,2]
[362302246,1748176244833,-443.0,0.00019995,2]
[362302248,1748176244843,-420.0,0.00019995,2]
[362302250,1748176244852,-515.553169,0.00019995,2]
[362302252,1748176244861,-420.0,0.00019995,2]
[362302254,1748176244871,-375.58,0.00019995,2]
[362302256,1748176244881,-420.0,0.00019995,2]
[362302258,1748176244890,-160.989566,0.00019995,2]
[362302260,1748176244899,-420.0,0.00019995,2]
[362302262,1748176244908,-151.0,0.00019995,2]
[362302264,1748176244917,-151.0,0.00019995,2]
[362302266,1748176244928,-515.553169,0.00019995,2]
[362302268,1748176244938,-429.70074802,0.00019995,2]
[362302270,1748176244948,-160.989566,0.00019995,2]
[362302271,1748176244956,-420.0,0.00019995,2]
[362302272,1748176244966,-266.48,0.00019995,2]
[362302273,1748176244975,-420.0,0.00019995,2]
[362302274,1748176244985,-420.0,0.00019995,2]
[362302275,1748176244995,-4634.262365,0.00019995,2]
[362302276,1748176245004,-4634.262365,0.00019995,2]
[362302277,1748176245014,-151.0,0.00019995,2]
[362302278,1748176245023,-426.7992611,0.00019995,2]